bitfinex/quotes_ETHUSD_20250519
["timestamp","ask_amount","ask_price","bid_price","bid_amount"]
[1747662952696,4.1056795,2435.7,2435.2,4.10631992]
[1747662952926,10.149,2435.8,2435.4,4.10606824]
[1747662953126,10.149,2435.8,2435.4,4.10600968]
[1747662953394,14.25443026,2435.8,2435.0,9.5277]
[1747662953599,6.24114409,2436.2,2435.2,5.31515258]
[1747662953831,0.55,2436.2,2435.6,1.569]
[1747662954010,20.297,2436.2,2435.8,4.10535555]
[1747662954196,14.25449004,2436.4,2435.9,4.10517095]
[1747662954398,14.25449004,2436.4,2435.9,4.10515199]
[1747662954622,14.25449004,2436.4,2435.6,1.569]
[1747662954623,4.10478151,2436.2,2435.7,4.10550541]
[1747662954809,4.10467839,2436.3,2435.8,4.10535459]
[1747662955133,14.25447861,2436.4,2435.9,4.10525883]
[1747662955325,14.25447861,2436.4,2436.0,4.10505588]
[1747662955508,14.25447861,2436.4,2435.9,4.10516107]
[1747662955702,14.25450306,2436.4,2435.9,4.10516107]
[1747662956342,10.15,2436.4,2435.8,4.10542737]
[1747662956574,14.25448356,2436.4,2435.6,9.569]
[1747662956739,10.15,2436.4,2435.9,4.10518593]
[1747662956965,14.25450479,2436.4,2435.9,4.10518593]
[1747662957258,4.10459755,2436.3,2435.9,4.10518593]
[1747662957439,10.15,2436.4,2435.8,4.10541724]
[1747662957657,14.25452336,2436.4,2435.9,4.10520908]
[1747662957871,4.65434456,2436.5,2436.0,4.10507941]
[1747662958229,4.10488485,2436.2,2435.7,4.10554444]
[1747662958468,4.1048343,2436.2,2435.7,4.1055089]
[1747662958646,4.10486706,2436.2,2435.7,4.1055089]
[1747662958854,4.10510997,2436.0,2435.6,9.569]
[1747662959219,4.10526107,2435.9,2435.6,1.569]
[1747662959415,4.1053803,2435.9,2435.4,4.10602067]
[1747662959610,4.10541144,2435.9,2435.4,4.10602067]
[1747662959850,10.699,2436.1,2435.3,1.5893]
[1747662960155,4.10594829,2435.5,2435.1,0.17663589]
[1747662960346,4.10587297,2435.6,2435.1,8.17663589]
[1747662960530,14.24073668,2435.7,2435.2,4.10634077]
[1747662960728,4.10581695,2435.6,2435.1,4.28316547]
[1747662961030,14.23863183,2436.3,2435.8,4.10530191]
[1747662961237,14.2533375,2436.5,2435.7,4.10559592]
[1747662961238,10.149,2436.5,2435.7,4.10559592]
[1747662961419,10.149,2436.5,2436.0,4.10509031]
[1747662961742,4.10453711,2436.4,2436.0,4.10502209]
[1747662961934,10.149,2436.5,2436.1,4.10487004]
[1747662962243,10.149,2436.5,2436.2,4.10467103]
[1747662962444,10.132,2436.8,2436.4,4.10425126]
[1747662962659,15.8137815,2436.9,2436.3,4.10458482]
[1747662962808,10.199,2436.9,2436.6,4.10395993]
[1747662963122,4.10382474,2436.8,2436.3,4.10452607]
[1747662963314,14.30266302,2436.9,2436.4,4.10439529]
[1747662963641,14.30269513,2436.9,2436.4,4.10434352]
[1747662963948,14.30265716,2436.9,2436.4,4.10438018]
[1747662964264,10.199,2436.9,2436.3,4.10447019]
[1747662964757,10.199,2436.9,2436.1,9.5742]
[1747662964968,4.10435371,2436.5,2436.1,9.5742]
[1747662965113,4.10451221,2436.4,2435.9,8.0]
[1747662965310,1.6412,2436.6,2435.8,1.536]
[1747662965511,5.74536241,2436.6,2436.1,4.1049115]
[1747662965715,1.6412,2436.6,2436.0,4.1049985]
[1747662966026,4.65399027,2436.7,2436.2,4.10464902]
[1747662966511,4.10379405,2436.8,2436.0,8.0]
[1747662966512,4.10445905,2436.4,2436.0,8.0]
[1747662966932,4.10431355,2436.5,2435.9,8.0]
[1747662967132,0.05,2436.9,2436.0,1.3641115]
[1747662967359,1.6122,2438.9,2437.8,13.62145923]
[1747662967628,0.05,2438.9,2437.8,13.62145923]
[1747662968066,0.05,2438.9,2437.8,13.93585146]
[1747662968285,0.05,2438.9,2437.8,17.28337206]
[1747662968873,0.05,2438.9,2437.8,37.54837206]
[1747662969825,1.5253,2438.8,2437.8,37.54837206]
[1747662970227,5.62573653,2438.8,2437.8,37.54837206]
[1747662970421,5.62573653,2438.8,2437.8,16.96897983]
[1747662970663,1.5253,2438.8,2437.8,16.96897983]
[1747662972055,4.10100864,2438.5,2437.8,16.96897983]
[1747662972252,1.5253,2438.8,2437.8,16.96897983]
[1747662972253,5.62574189,2438.8,2437.8,16.96897983]
[1747662972457,1.5253,2438.8,2437.8,22.28413241]
[1747662972762,0.05,2438.9,2437.8,32.42713241]
[1747662973183,4.10085618,2438.6,2437.8,22.28413241]
[1747662973382,4.10130149,2438.3,2437.8,1.5194]
[1747662973567,4.1023211,2437.7,2437.3,1.6535]
[1747662973768,4.15193262,2437.9,2437.0,5.8265]
[1747662973968,0.05,2437.9,2437.3,4.10285402]
[1747662974186,0.05,2437.9,2437.2,8.0]
[1747662974398,4.15197301,2437.9,2437.3,4.10275751]
[1747662974572,0.05,2437.9,2437.4,4.10264434]
[1747662974898,0.05,2437.9,2437.0,0.17663589]
[1747662974899,0.55,2437.7,2437.0,0.17663589]
[1747662975195,4.10323745,2437.1,2437.0,0.17663589]
[1747662975402,16.36833745,2437.1,2437.0,0.17663589]
[1747662975802,11.7151,2437.1,2436.7,4.10380343]
[1747662975997,11.7151,2437.1,2436.8,4.10371323]
[1747662976222,4.1034349,2437.0,2436.4,4.10430582]
[1747662976399,4.1036881,2436.9,2436.3,5.76209832]
[1747662976702,21.8191,2437.1,2436.4,4.10439604]
[1747662976862,1.5731,2437.1,2436.4,4.10441635]
[1747662977068,1.6055,2437.8,2437.6,4.1022995]
[1747662977311,0.05,2437.9,2436.8,8.0]
[1747662977669,8.55,2437.7,2436.4,8.0]
[1747662977869,0.55,2437.4,2436.4,1.05554809]
[1747662978179,11.7575,2437.5,2436.4,17.41956685]
[1747662978384,11.7575,2437.5,2437.1,4.10311083]
[1747662978782,5.75809889,2437.5,2437.0,4.1033175]
[1747662978981,1.6555,2437.5,2436.9,4.10342304]
[1747662979225,1.6555,2437.5,2437.0,4.10324513]
[1747662979433,5.7580667,2437.5,2437.0,4.10324513]
[1747662979590,1.6723,2437.9,2437.4,4.10260029]
[1747662979773,1.6723,2437.9,2437.1,8.0]
[1747662980112,1.6723,2437.9,2437.4,4.10261599]
[1747662980342,0.05,2437.9,2437.4,0.4102616]
[1747662980615,0.05,2437.9,2437.7,4.10214255]
[1747662980820,0.05,2437.9,2437.8,4.10205923]
[1747662981336,0.05,2437.9,2437.3,1.6412]
[1747662981632,0.55,2437.7,2436.8,0.17663589]
[1747662981780,21.81805923,2437.8,2436.8,0.17663589]
[1747662981983,20.195,2437.6,2436.8,4.28037009]
[1747662982195,20.195,2437.6,2437.1,4.10323275]
[1747662982196,24.29747948,2437.6,2437.1,4.10323275]
[1747662982515,10.098,2437.6,2436.8,0.6046729]
[1747662982813,10.098,2437.6,2437.0,4.10331855]
[1747662982814,4.10257636,2437.5,2437.0,4.10331855]
[1747662982998,4.10257636,2437.5,2436.8,0.17663589]
[1747662982999,4.10298725,2437.3,2436.8,4.28036036]
[1747662983193,4.10273241,2437.4,2436.8,0.17663589]
[1747662983393,4.102977,2437.3,2436.8,4.28035223]
[1747662983604,4.10273241,2437.4,2436.8,4.28035223]
[1747662983605,0.05129026,2437.4,2436.8,0.17663589]
[1747662983788,1.6158,2437.2,2436.8,0.17663589]
[1747662983988,4.10357421,2436.9,2436.4,4.10440484]
[1747662984201,11.7108,2437.2,2436.3,2.57618085]
[1747662984530,4.10401118,2436.7,2436.2,4.10474008]
[1747662984688,1.6462,2436.5,2435.9,0.17663589]
[1747662984886,4.65458482,2436.3,2435.9,0.17663589]
[1747662985086,4.10487071,2436.2,2435.9,0.17663589]
[1747662985293,4.10501772,2436.1,2435.9,0.17663589]
[1747662985592,4.65463957,2436.3,2435.9,0.17663589]
[1747662985593,4.10481861,2436.2,2435.9,0.17663589]
[1747662985799,4.10509031,2436.0,2435.9,0.17663589]
[1747662986882,4.10506416,2436.1,2435.5,4.105824]
[1747662987087,14.20511621,2436.0,2435.5,4.105824]
[1747662987498,10.1,2436.0,2435.6,4.10572995]
[1747662987701,14.20511341,2436.0,2435.6,0.22472158]
[1747662988022,4.65559592,2435.7,2435.6,0.22472158]
[1747662988229,21.33940883,2435.7,2435.6,0.22472158]
[1747662988526,21.28807818,2435.7,2435.6,0.22472158]
[1747662988682,9.582,2435.7,2435.1,0.05]
[1747662988882,4.10503898,2436.1,2435.4,4.10609674]
[1747662989083,4.10511334,2436.0,2435.5,0.41060967]
[1747662989319,15.71358772,2436.2,2435.2,5.75973682]
[1747662989620,4.10502511,2436.1,2435.5,4.10579771]
[1747662989794,15.71358216,2436.2,2435.3,4.10627027]
[1747662990126,15.71358216,2436.2,2435.7,4.10550013]
[1747662990419,10.1,2436.2,2435.9,4.10516086]
[1747662990619,10.1,2436.2,2435.7,0.82113121]
[1747662990807,10.1,2436.2,2436.0,4.1050085]
[1747662991381,10.1,2436.2,2436.1,4.1049218]
[1747662991588,27.822,2436.6,2435.9,5.75285033]
[1747662991791,17.72,2436.6,2436.0,0.57528503]
[1747662992127,10.102,2436.7,2436.5,4.10424789]
[1747662992424,10.102,2436.7,2436.2,4.1047533]
[1747662992600,10.102,2436.7,2436.6,4.10407945]
[1747662992975,11.15232973,2438.0,2436.6,4.10407945]
[1747662992976,5.61718783,2437.8,2436.6,2.07390795]
[1747662993088,4.1022275,2437.7,2437.0,4.10331192]
[1747662993284,4.10243787,2437.6,2437.1,4.10323576]
[1747662993593,4.65229845,2437.7,2436.7,4.10389628]
[1747662993787,1.515,2437.8,2436.8,5.52147267]
[1747662993985,1.515,2437.8,2436.9,4.10353317]
[1747662994184,1.515,2437.8,2437.4,4.1026273]
[1747662994383,1.515,2437.8,2436.8,1.41778042]
[1747662994384,4.10256085,2437.6,2436.8,9.41778042]
[1747662994627,4.10295568,2437.3,2436.8,1.41778042]
[1747662994920,4.10291828,2437.3,2436.8,12.10367375]
[1747662995129,10.102,2437.4,2437.1,4.10321056]
[1747662995326,4.10290075,2437.3,2436.8,4.10371211]
[1747662995526,4.10290075,2437.3,2435.9,4.10525313]
[1747662995527,4.10367377,2436.9,2436.2,5.71324317]
[1747662995717,4.10296116,2437.3,2436.7,4.10377889]
[1747662996022,4.10296116,2437.3,2436.3,4.10458482]
[1747662996023,25.81931163,2437.4,2436.4,4.10441635]
[1747662996237,4.65292808,2437.3,2436.2,1.6085]
[1747662996526,4.65297953,2437.3,2436.3,4.10458482]
[1747662996752,21.7165,2437.4,2436.5,4.10423587]
[1747662996889,21.7165,2437.4,2436.9,4.1035426]
[1747662997090,20.187,2437.4,2436.7,1.5505]
[1747662997411,10.102,2437.4,2436.8,4.10368533]
[1747662997618,10.102,2437.4,2436.8,4.66910386]
[1747662997823,10.102,2437.4,2436.8,0.56541853]
[1747662998055,14.20481567,2437.4,2436.9,4.10346454]
[1747662998341,10.102,2437.4,2436.7,1.5505]
[1747662998540,10.102,2437.4,2437.2,4.10299881]
[1747662998736,10.102,2437.4,2437.1,4.10314719]
[1747662998909,10.102,2437.4,2437.0,4.10328658]
[1747662999221,4.10246706,2437.6,2437.1,4.10319675]
[1747662999440,4.10241288,2437.6,2437.1,0.82066026]
[1747662999739,4.10241288,2437.6,2437.1,4.92381003]
[1747663000094,4.10268984,2437.5,2437.1,0.82066026]
[1747663000810,4.10250085,2437.6,2437.1,4.92386025]
[1747663001009,4.10250085,2437.6,2437.2,4.10306508]
[1747663001222,4.1022275,2437.7,2436.7,9.5505]
[1747663001398,4.10253806,2437.6,2436.9,4.10349468]
[1747663001594,11.6661,2437.8,2437.3,4.10280457]
[1747663001595,15.76822147,2437.8,2437.3,4.10280457]
[1747663001819,0.05,2437.9,2437.8,4.10205923]
[1747663001993,0.05,2437.9,2437.7,1.5186]
[1747663002193,0.05,2437.9,2437.8,4.10205923]
[1747663002888,0.05,2437.9,2437.8,5.07435707]
[1747663003193,0.05,2437.9,2437.7,5.62066653]
[1747663003395,0.05,2437.9,2437.7,1.5186]
[1747663003623,0.05,2437.9,2437.7,5.61880477]
[1747663003830,0.05,2437.9,2437.7,5.61881164]
[1747663003999,0.05,2437.9,2437.7,1.51667006]
[1747663004203,4.15191095,2437.9,2437.5,12.10239952]
[1747663004420,0.05,2437.9,2437.5,4.10256335]
[1747663004622,0.05,2437.9,2437.6,4.10237784]
[1747663004958,0.05,2437.9,2437.8,4.10205923]
[1747663005260,0.05,2437.9,2437.8,22.17305923]
[1747663006734,0.05,2437.9,2437.8,23.83625923]
[1747663007820,0.05,2437.9,2437.8,41.68135124]
[1747663008329,0.05,2437.9,2437.8,51.77335124]
[1747663008532,0.05,2437.9,2437.8,13.7613927]
[1747663008860,0.05,2437.9,2437.8,13.76525923]
[1747663009055,0.05,2437.9,2437.5,14.34418684]
[1747663009056,0.05,2437.9,2437.5,0.17663589]
[1747663009552,0.05,2437.9,2437.6,4.10236748]
[1747663009752,0.05,2437.9,2437.5,4.27912939]
[1747663009956,0.05,2437.9,2437.5,0.17663589]
[1747663010159,4.15194213,2437.9,2437.5,0.17663589]
[1747663010362,0.05,2437.9,2437.6,4.10231723]
[1747663010523,4.15197931,2437.9,2437.5,0.17663589]
[1747663010723,0.05,2437.9,2437.5,0.17663589]
[1747663011042,4.10239579,2437.6,2437.5,0.17663589]
[1747663011241,16.30279579,2437.6,2437.5,0.17663589]
[1747663011450,4.1025676,2437.5,2437.0,4.10328476]
[1747663011654,4.10325616,2437.1,2436.5,1.5179]
[1747663011837,12.2004,2437.6,2436.5,1.5179]
[1747663011838,4.10273241,2437.4,2436.5,1.5179]
[1747663012038,11.6504,2437.6,2436.7,8.0]
[1747663012258,15.75289203,2437.6,2437.1,4.1031123]
[1747663012567,11.6504,2437.6,2436.7,0.7]
[1747663012770,11.6504,2437.6,2437.3,4.10288513]
[1747663012921,11.6504,2437.6,2437.2,4.10297533]
[1747663013256,0.05,2437.9,2437.2,1.655]
[1747663013257,1.5856,2437.9,2437.2,1.655]
[1747663013445,0.05,2437.9,2437.6,4.10228615]
[1747663013770,0.05,2437.9,2437.6,4.1023926]
[1747663013948,0.05,2437.9,2437.8,4.10205923]
[1747663014252,0.05,2437.9,2437.6,0.41023926]
[1747663014459,0.05,2437.9,2437.7,4.10210047]
[1747663014641,0.05,2437.9,2437.3,12.10290075]
[1747663014843,0.05,2437.9,2437.7,4.10208384]
[1747663015047,0.05,2437.9,2437.8,4.10205923]
[1747663015228,0.05,2437.9,2437.8,13.73475923]
[1747663015424,0.05,2437.9,2437.8,20.81561884]
[1747663016430,0.05,2437.9,2437.8,21.36561884]
[1747663016927,0.05,2437.9,2437.8,21.49370837]
[1747663017329,0.05,2438.9,2438.8,4.10037723]
[1747663018227,0.05,2438.9,2438.5,8.0]
[1747663018570,0.05,2438.9,2437.8,6.43565508]
[1747663018571,4.10114301,2438.4,2437.9,1.5515]
[1747663018726,1.6612,2438.8,2437.9,8.0]
[1747663018727,4.10122535,2438.3,2437.9,8.0]
[1747663018924,14.15171352,2438.6,2437.9,8.0]
[1747663019158,4.10105875,2438.4,2437.9,4.1018029]
[1747663019335,10.051,2438.6,2438.0,12.1016174]
[1747663019534,4.10157655,2438.1,2437.6,1.6011]
[1747663019767,4.10134041,2438.3,2437.7,4.10218901]
[1747663019938,1.6003,2438.2,2437.7,12.10215549]
[1747663020139,4.10168029,2438.1,2437.5,0.17663589]
[1747663020344,1.6003,2438.2,2437.7,4.10209154]
[1747663020540,1.6003,2438.2,2437.8,4.10198065]
[1747663020740,1.6003,2438.2,2437.9,4.10185989]
[1747663020963,1.6003,2438.2,2437.5,0.17663589]
[1747663021181,1.6003,2438.2,2437.5,4.27906735]
[1747663021473,4.65155448,2438.1,2437.5,0.17663589]
[1747663021645,5.70269579,2437.6,2437.5,0.17663589]
[1747663021836,6.25269579,2437.6,2437.5,0.17663589]
[1747663022184,2.1503,2437.6,2436.9,4.10348876]
[1747663022335,26.35778624,2437.6,2437.1,4.10323002]
[1747663022535,11.6593,2437.6,2437.0,0.04103143]
[1747663022739,21.7053,2437.6,2436.8,0.17663589]
[1747663023043,10.059,2437.6,2436.8,5.47381119]
[1747663023261,1.6068,2437.9,2437.2,4.10306909]
[1747663023429,1.6068,2437.9,2437.1,9.40040474]
[1747663023631,1.6068,2437.9,2437.7,4.10214264]
[1747663023831,20.105,2438.2,2437.4,5.2971753]
[1747663024059,20.105,2438.2,2437.4,8.0]
[1747663024258,20.105,2438.2,2437.5,4.10255705]
[1747663024259,4.1017848,2438.0,2437.5,4.10255705]
[1747663024672,10.06,2438.2,2437.5,1.62052661]
[1747663024831,10.06,2438.2,2437.8,4.10193794]
[1747663025380,10.06,2438.2,2437.5,5.72296585]
[1747663025605,14.16145581,2438.2,2437.7,4.10211411]
[1747663025880,1.5387,2438.3,2438.1,4.10147581]
[1747663026086,10.06,2438.5,2438.3,4.10121295]
[1747663026285,11.5005,2438.6,2438.3,4.10121295]
[1747663026580,15.60122396,2438.6,2438.1,4.10146946]
[1747663026738,11.5005,2438.6,2437.7,10.059]
[1747663026936,4.10130114,2438.3,2437.8,4.10205278]
[1747663027276,4.1015393,2438.2,2437.6,4.10226324]
[1747663027589,4.10189097,2437.9,2437.8,0.7]
[1747663027752,14.76216799,2437.9,2437.8,0.7]
[1747663028076,14.76216799,2437.9,2436.9,0.17663589]
[1747663028077,1.5771,2437.3,2436.9,0.17663589]
[1747663028291,1.5771,2437.7,2437.2,4.10304104]
[1747663028438,21.81473643,2438.0,2437.2,4.10304104]
[1747663028439,19.2901,2438.0,2437.2,0.4103041]
[1747663028636,0.60127684,2437.9,2437.2,0.4103041]
[1747663028863,0.60127684,2437.9,2436.8,20.099]
[1747663028864,0.55,2437.7,2436.7,1.5789]
[1747663029071,1.6215,2437.4,2436.7,1.5789]
[1747663029274,1.6215,2437.4,2437.0,4.10329724]
[1747663029440,12.10191977,2437.9,2436.9,4.10357421]
[1747663029441,10.06,2437.8,2436.9,4.10357421]
[1747663029646,4.10230598,2437.7,2437.2,4.10296818]
[1747663029972,10.06,2437.8,2437.2,4.10298199]
[1747663030288,21.7195,2438.3,2437.7,4.1022275]
[1747663030450,21.7195,2438.3,2437.9,4.10173245]
[1747663030640,11.6815,2438.3,2437.9,4.10181371]
[1747663030847,11.6815,2438.3,2438.0,4.10157636]
[1747663031245,31.85166593,2438.7,2438.0,0.41015764]
[1747663031246,1.6568,2438.6,2438.0,0.41015764]
[1747663031468,4.10102008,2438.5,2437.7,9.5341]
[1747663031673,0.55,2438.3,2437.1,0.17663589]
[1747663031885,19.53034439,2437.2,2437.1,0.17663589]
[1747663032084,5.68417945,2436.6,2436.5,0.35097466]
[1747663032250,15.71917945,2436.6,2436.5,0.35097466]
[1747663032577,16.26917945,2436.6,2436.5,0.35097466]
[1747663032780,21.56635475,2436.6,2436.5,0.35097466]
[1747663033195,16.26917945,2436.6,2436.5,0.35097466]
[1747663034197,21.6731,2436.6,2435.3,29.6095]
[1747663034417,4.10467286,2436.3,2435.8,4.10540203]
[1747663034600,0.55,2436.5,2435.3,15.68174768]
[1747663034764,4.10473127,2436.3,2435.7,4.10554142]
[1747663035214,4.10441635,2436.4,2435.7,4.10554142]
[1747663035377,4.6547533,2436.2,2435.5,4.1057893]
[1747663035577,4.10467247,2436.3,2435.6,4.10575362]
[1747663035790,1.5801,2436.6,2435.5,8.0]
[1747663035991,10.062,2436.5,2436.0,4.10506627]
[1747663036175,10.062,2436.5,2436.1,4.15483763]
[1747663036570,10.062,2436.5,2436.1,4.15483346]
[1747663039386,10.063,2436.7,2436.1,0.05]
[1747663039721,11.5984,2437.0,2436.6,4.10398437]
[1747663040014,11.5984,2437.0,2436.1,0.05]
[1747663040015,17.713,2437.2,2436.8,4.10358773]
[1747663040218,17.713,2437.2,2436.8,4.10357731]
[1747663040925,4.10332751,2437.1,2436.4,1.6201]
[1747663041084,4.10338284,2437.1,2436.4,4.10437557]
[1747663041418,4.10338284,2437.1,2436.4,4.10433483]
[1747663041419,4.10366824,2436.9,2436.4,4.10433483]
[1747663041721,4.10414046,2436.6,2436.1,4.15484733]
[1747663042015,4.10400014,2436.7,2436.2,4.1047418]
[1747663042189,4.10400305,2436.7,2436.2,4.10471433]
[1747663042820,4.10400305,2436.7,2436.1,0.05]
[1747663042821,4.1047533,2436.2,2436.1,0.05]
[1747663042984,24.7157533,2436.2,2436.1,0.05]
[1747663043481,0.55,2436.2,2436.1,0.05]
[1747663043677,17.72,2436.3,2436.1,0.05]
[1747663043916,4.1047533,2436.2,2436.1,0.05]
[1747663044120,4.10465604,2436.3,2436.1,0.05]
[1747663044417,4.10450418,2436.4,2436.1,0.05]
[1747663044637,10.031,2436.5,2436.1,0.05]
[1747663044789,10.032,2436.5,2436.1,4.1548392]
[1747663044988,4.10443023,2436.4,2436.1,0.05]
[1747663045288,4.10441635,2436.4,2436.1,0.05]
[1747663045508,10.032,2436.5,2436.1,0.05]
[1747663046031,4.10450353,2436.4,2436.1,0.05]
[1747663046189,4.10432727,2436.5,2436.1,0.05]
[1747663046391,4.10432727,2436.5,2436.1,4.1549167]
[1747663046589,4.10432727,2436.5,2436.1,0.05]
[1747663046794,10.032,2436.6,2436.1,0.05]
[1747663046990,24.16422419,2436.6,2436.1,4.1548526]
[1747663047195,4.10402308,2436.7,2436.1,4.1548526]
[1747663047196,1.5512,2436.9,2436.1,0.87600086]
[1747663047621,1.5512,2436.9,2436.1,0.05]
[1747663047622,0.05130171,2436.8,2436.1,0.05]
[1747663047805,4.10469048,2436.3,2436.1,0.05]
[1747663047994,4.1047533,2436.2,2436.1,0.05]
[1747663048217,14.1848533,2436.2,2436.1,0.05]
[1747663048420,16.2178533,2436.2,2436.1,0.05]
[1747663048642,26.2448533,2436.2,2436.1,0.05]
[1747663049277,1.5338,2436.6,2436.1,0.05]
[1747663049424,0.55,2436.5,2436.1,0.05]
[1747663049770,1.5338,2436.6,2436.1,0.05]
[1747663049921,4.10426441,2436.5,2436.1,0.05]
[1747663050120,0.55,2436.5,2436.1,0.05]
[1747663050329,1.5338,2436.6,2436.1,0.05]
[1747663050560,1.5338,2436.6,2436.2,4.10471642]
[1747663050854,4.10450885,2436.4,2436.1,0.05]
[1747663051060,4.10432774,2436.5,2436.1,0.05]
[1747663051564,14.13816509,2436.6,2436.1,4.15490932]
[1747663051771,10.034,2436.6,2436.1,0.05]
[1747663051941,4.1042659,2436.5,2436.1,0.05]
[1747663052123,4.10441696,2436.4,2436.1,0.05]
[1747663052472,4.10430595,2436.5,2436.1,0.05]
[1747663052648,4.10398393,2436.7,2436.2,4.10472813]
[1747663052965,10.034,2436.6,2436.1,0.05]
[1747663053338,0.55,2436.5,2436.1,4.1548885]
[1747663053652,4.65430231,2436.5,2436.1,0.05]
[1747663053875,6.1985533,2436.2,2436.1,0.05]
[1747663054070,16.27287257,2436.2,2436.1,0.05]
[1747663054354,16.2215533,2436.2,2436.1,0.05]
[1747663054558,10.034,2436.3,2436.1,0.02965233]
[1747663054768,15.75971489,2436.5,2436.1,0.02965233]
[1747663054769,4.1047533,2436.2,2436.1,0.02965233]
[1747663054925,24.21306651,2436.2,2436.1,0.02965233]
[1747663055124,24.7117533,2436.2,2436.1,0.02965233]
[1747663056042,32.7117533,2436.2,2436.1,0.02965233]
[1747663056522,34.2345533,2436.2,2436.1,0.02965233]
[1747663057060,34.2345533,2436.2,2435.1,0.05]
[1747663057061,6.17923889,2435.2,2435.1,0.05]
[1747663057262,34.28758175,2435.2,2435.1,0.05]
[1747663057436,34.23623889,2435.2,2435.1,0.05]
[1747663058935,14.17923889,2435.2,2435.1,0.05]
[1747663059138,34.23823889,2435.2,2435.1,0.05]
[1747663060072,14.17923889,2435.2,2435.1,0.05]
[1747663060564,34.23723889,2435.2,2435.1,0.05]
[1747663061549,23.03177853,2435.4,2435.1,0.05]
[1747663061550,17.725,2435.4,2435.1,0.05]
[1747663061751,4.10643889,2435.2,2435.1,0.05]
[1747663061953,20.059,2435.3,2435.1,0.05]
[1747663062157,24.16540184,2435.3,2435.1,0.05]
[1747663062355,1.5386,2435.5,2435.1,0.05]
[1747663062534,4.10613642,2435.4,2435.1,0.05]
[1747663062734,20.059,2435.4,2435.1,0.05]
[1747663062931,17.732,2435.6,2435.1,0.05]
[1747663063135,10.038,2435.7,2435.3,4.10615936]
[1747663063950,10.038,2435.7,2435.2,1.5344]
[1747663064263,10.038,2435.9,2435.5,4.1058516]
[1747663064427,10.038,2435.9,2435.4,4.10597151]
[1747663064633,4.10497295,2436.1,2435.6,4.10567982]
[1747663064634,4.10502644,2436.1,2435.6,4.10567982]
[1747663064828,4.1047533,2436.2,2435.5,4.10581347]
[1747663065035,10.038,2436.1,2435.5,4.10589894]
[1747663065234,14.14292819,2436.1,2435.6,4.10567986]
[1747663065439,4.10482737,2436.2,2435.7,4.1055769]
[1747663065645,4.10482737,2436.2,2435.4,0.56403715]
[1747663065646,0.55,2436.1,2435.4,0.56403715]
[1747663065863,0.55,2436.1,2435.6,4.10576449]
[1747663066044,0.55,2436.1,2435.5,1.26702147]
[1747663066244,0.55,2436.1,2435.4,4.67013207]
[1747663066245,0.55,2435.9,2435.2,1.5344]
[1747663066665,4.10522341,2436.0,2435.1,8.05]
[1747663066666,4.1060125,2435.5,2435.1,8.05]
[1747663066868,1.6099,2435.1,2434.1,0.40097466]
[1747663067079,4.10812587,2434.2,2434.1,0.40097466]
[1747663067377,5.30677853,2435.2,2434.1,0.40097466]
[1747663067556,0.55,2435.0,2434.1,0.40097466]
[1747663067745,4.10812587,2434.2,2434.1,0.40097466]
[1747663067940,14.14712587,2434.2,2434.1,0.40097466]
[1747663068148,14.69712587,2434.2,2434.1,0.40097466]
[1747663068865,22.69712587,2434.2,2434.1,0.40097466]
[1747663069060,22.69712587,2434.2,2434.1,0.05]
[1747663069259,14.69712587,2434.2,2434.1,0.05]
[1747663069458,4.65812587,2434.2,2434.1,0.05]
[1747663069768,24.71412587,2434.2,2434.1,0.05]
[1747663070573,4.65812587,2434.2,2434.1,0.05]
[1747663070760,24.71512587,2434.2,2434.1,0.05]
[1747663071733,0.55,2434.2,2434.1,0.05]
[1747663071985,24.69212587,2434.2,2434.1,0.05]
[1747663072271,4.65812587,2434.2,2434.1,0.05]
[1747663072682,24.69112587,2434.2,2434.1,0.05]
[1747663072850,10.017,2434.2,2434.1,0.05]
[1747663073054,20.033,2434.2,2434.1,0.05]
[1747663073268,4.10812587,2434.2,2434.1,0.05]
[1747663073462,26.34022587,2434.2,2434.1,0.05]
[1747663073678,34.34022587,2434.2,2434.1,0.05]
[1747663075895,39.6470044,2434.2,2434.1,0.05]
[1747663077356,39.6470044,2434.2,2432.1,0.05]
[1747663077357,0.55,2433.0,2432.1,0.05]
[1747663077558,20.08539133,2432.9,2432.1,0.05]
[1747663077767,0.55,2432.7,2432.1,0.05]
[1747663077969,4.1108502,2432.6,2432.1,4.16155141]
[1747663078174,4.66073728,2432.7,2432.2,4.11149581]
[1747663078717,4.11083087,2432.6,2432.1,4.16158074]
[1747663078922,4.66114024,2432.5,2432.1,0.05]
[1747663079219,4.11117196,2432.4,2432.1,0.05]
[1747663079414,0.55,2432.2,2432.1,0.05]
[1747663079721,4.66150398,2432.2,2432.1,0.05]
[1747663080817,0.55,2432.2,2432.1,0.05]
[1747663081003,14.13036628,2432.3,2432.1,0.05]
[1747663081323,10.019,2432.3,2432.1,0.05]
[1747663081696,14.1303566,2432.3,2432.1,0.05]
[1747663081892,10.019,2432.3,2432.1,0.05]
[1747663082107,10.019,2432.3,2431.2,25.34177853]
[1747663082314,10.019,2432.3,2431.3,2.53417785]
[1747663082617,10.019,2432.3,2432.0,4.11175856]
[1747663082804,10.019,2432.3,2431.9,4.11192779]
[1747663083005,10.019,2432.3,2431.4,4.11270328]
[1747663083006,10.019,2432.3,2431.5,4.11268764]
[1747663083212,10.019,2432.3,2432.1,4.11156805]
[1747663083524,20.036,2432.8,2432.1,4.52275944]
[1747663083683,20.036,2432.8,2432.1,0.4111568]
[1747663084085,20.036,2432.8,2431.8,23.32977853]
[1747663084298,4.11074625,2432.7,2432.2,4.11142228]
[1747663084502,24.14651197,2432.8,2432.0,4.1118421]
[1747663084503,20.036,2432.8,2432.0,4.1118421]
[1747663084722,0.0513922,2432.7,2432.2,4.11141472]
[1747663084927,20.036,2432.8,2432.4,4.11108692]
[1747663085085,10.023,2432.8,2432.3,1.55]
[1747663085284,10.023,2432.8,2432.3,5.6613132]
[1747663085513,10.023,2432.8,2432.7,4.11065893]